bitfinex-derivatives/quotes_SOLF0:USTF0_20240823
["timestamp","ask_amount","ask_price","bid_price","bid_amount"]
[1724404472575,0.05059068,144.82,144.81,15.94291921]
[1724404473472,0.05059068,144.82,144.81,17.27501921]
[1724404475072,0.05059068,144.82,144.81,13.57559187]
[1724404475272,0.05059068,144.82,144.81,17.27504626]
[1724404476272,3.4513,144.86,144.82,3.4521]
[1724404476472,3.4513,144.86,144.84,7.41]
[1724404477061,3.50051728,144.86,144.84,0.04543313]
[1724404480577,3.4515,144.85,144.84,0.04543313]
[1724404495487,10.8615,144.85,144.84,0.04543313]
[1724404501895,3.4523,144.82,144.78,3.453]
[1724404502089,3.4523,144.82,144.79,1.38112542]
[1724404502288,3.4523,144.82,144.8,5.08070562]
[1724404502485,3.4523,144.82,144.81,5.08070562]
[1724404502814,3.4523,144.82,144.81,3.6995802]
[1724404502985,3.4523,144.82,144.81,1.38112542]
[1724404503187,3.4523,144.82,144.81,5.08070561]
[1724404509783,3.4523,144.82,144.8,0.05293064]
[1724404509983,3.4523,144.82,144.81,5.08053006]
[1724404513084,3.4523,144.82,144.81,1.38108846]
[1724404513285,3.4523,144.82,144.81,5.08053006]
[1724404514198,10.8623,144.82,144.81,5.08053006]
[1724404515495,3.4523,144.82,144.81,5.08053006]
[1724404516396,3.4523,144.82,144.81,1.38108846]
[1724404516597,3.4523,144.82,144.81,5.08066898]
[1724404517020,3.4523,144.82,144.8,0.05293064]
[1724404517306,3.4523,144.82,144.81,5.08070603]
[1724404517787,3.5000649,144.83,144.81,5.08070603]
[1724404517994,3.5000649,144.83,144.8,0.05293064]
[1724404518199,3.5000649,144.83,144.81,5.08066965]
[1724404518499,3.5000649,144.83,144.8,0.05293064]
[1724404518701,3.5000649,144.83,144.81,5.08066965]
[1724404518992,3.5000649,144.83,144.8,0.05293064]
[1724404519209,3.4522,144.82,144.81,5.08070392]
[1724404520401,10.8622,144.82,144.81,5.08070392]
[1724404522812,10.8622,144.82,144.8,0.05293064]
[1724404522996,10.8622,144.82,144.81,5.08070947]
[1724404523503,10.8622,144.82,144.81,5.08071612]
[1724404523902,3.4522,144.82,144.81,5.08071612]
[1724404526102,3.4522,144.82,144.81,1.38113288]
[1724404526393,3.4522,144.82,144.81,5.08074105]
[1724404529211,3.4522,144.82,144.8,0.05293064]
[1724404529403,3.4522,144.82,144.81,1.38113288]
[1724404529603,3.4522,144.82,144.81,5.08074104]
[1724404530004,3.4522,144.82,144.81,1.38113288]
[1724404530405,3.4522,144.82,144.81,5.08074128]
[1724404530810,3.5000649,144.83,144.81,5.08074624]
[1724404531009,3.5000649,144.83,144.8,0.05293064]
[1724404531215,3.5000649,144.83,144.81,5.08071063]
[1724404531518,3.5000649,144.83,144.8,0.05293064]
[1724404531701,3.5000649,144.83,144.81,5.08070929]
[1724404531902,3.5000649,144.83,144.8,0.05293064]
[1724404532101,3.5000649,144.83,144.81,5.08074356]
[1724404532314,3.5000649,144.83,144.8,0.05293064]
[1724404532815,3.5000649,144.83,144.81,5.08074356]
[1724404533114,3.5000649,144.83,144.8,0.05293064]
[1724404533310,3.5000649,144.83,144.81,5.08070835]
[1724404533512,0.0480649,144.83,144.8,0.05293064]
[1724404533708,0.0480649,144.83,144.81,1.38111975]
[1724404534014,0.0480649,144.83,144.8,0.05293064]
[1724404534212,0.0480649,144.83,144.81,5.08067866]
[1724404534513,0.0480649,144.83,144.8,0.05293064]
[1724404534707,0.0480649,144.83,144.81,5.08066505]
[1724404534903,0.0480649,144.83,144.8,0.05293064]
[1724404535202,0.0480649,144.83,144.81,5.08066505]
[1724404535416,0.0480649,144.83,144.8,0.05293064]
[1724404535601,0.0480649,144.83,144.81,5.08066505]
[1724404535805,0.0480649,144.83,144.8,0.05293064]
[1724404536004,0.0480649,144.83,144.81,5.08066505]
[1724404536208,0.0480649,144.83,144.8,0.05293064]
[1724404536408,0.0480649,144.83,144.81,5.08066505]
[1724404536615,0.0480649,144.83,144.8,0.05293064]
[1724404536914,0.0480649,144.83,144.81,5.08066505]
[1724404537113,0.0480649,144.83,144.8,0.05293064]
[1724404537313,0.0480649,144.83,144.81,5.08066505]
[1724404537516,0.0480649,144.83,144.82,3.69954817]
[1724404538410,0.0480649,144.83,144.8,0.05293064]
[1724404538608,0.0480649,144.83,144.81,5.08066505]
[1724404538808,0.0480649,144.83,144.82,3.69954817]
[1724404539012,0.0480649,144.83,144.8,0.05293064]
[1724404539303,0.0480649,144.83,144.81,3.69952112]
[1724404539509,0.0480649,144.83,144.82,3.69952112]
[1724404540006,0.0480649,144.83,144.82,14.56172112]
[1724404540317,2.7112,144.97,144.87,7.41]
[1724404540511,1.26885276,144.92,144.87,7.41]
[1724404541317,0.04733218,144.91,144.88,0.04733159]
[1724404541615,3.49753218,144.91,144.88,0.04733159]
[1724404541808,1.26885276,144.9,144.88,7.45733159]
[1724404543720,3.49753218,144.91,144.88,0.04733159]
[1724404544019,1.26883762,144.9,144.88,0.04733159]
[1724404544216,1.26883762,144.9,144.88,7.45733159]
[1724404544414,0.04733218,144.91,144.89,7.41]
[1724404544616,0.04733218,144.91,144.88,7.45733159]
[1724404544808,0.04733218,144.91,144.88,0.04733159]
[1724404545225,0.04733218,144.91,144.88,1.36843159]
[1724404545414,1.31616225,144.91,144.88,1.36843159]
[1724404546123,1.26883007,144.9,144.88,1.36843159]
[1724404546321,0.04733218,144.91,144.88,1.36843159]
[1724404546520,1.31616068,144.91,144.88,1.36843159]
[1724404546820,8.72616068,144.91,144.88,1.36843159]
[1724404547020,1.2688285,144.9,144.88,1.36843159]
[1724404547720,0.04733218,144.91,144.88,1.36843159]
[1724404548823,7.45733218,144.91,144.88,1.36843159]
[1724404549018,1.26882947,144.9,144.88,1.36843159]
[1724404549722,0.04733218,144.91,144.88,1.36843159]
[1724404549723,7.41,144.89,144.88,1.36843159]
[1724404550022,8.67882947,144.89,144.88,0.04733159]
[1724404550423,8.67882947,144.89,144.84,2.6494]
[1724404550627,2.02794,144.92,144.84,2.6494]
[1724404550829,7.41,144.86,144.84,2.6494]
[1724404551423,7.45588172,144.86,144.84,2.6494]
[1724404551620,7.45588172,144.86,144.84,2.69978392]
[1724404552429,0.04588172,144.86,144.84,2.69978392]
[1724404553133,0.04588172,144.86,144.84,10.10978392]
[1724404554027,0.04588172,144.86,144.84,2.69978392]
[1724404554432,0.04588172,144.86,144.85,7.41]
[1724404554625,0.04588172,144.86,144.84,2.69978392]
[1724404556528,0.04588172,144.86,144.84,1.41898392]
[1724404556726,7.45588172,144.86,144.84,1.41898392]
[1724404558134,0.04588172,144.86,144.84,1.41898392]
[1724404558336,7.45588172,144.86,144.84,1.41898392]
[1724404558635,10.90708172,144.86,144.84,1.41898392]
[1724404559835,3.49708172,144.86,144.84,1.41898392]
[1724404560236,0.04588172,144.86,144.84,1.41898392]
[1724404560538,0.04588172,144.86,144.84,8.82898392]
[1724404562237,0.04588172,144.86,144.84,1.41898392]
[1724404563033,7.45588172,144.86,144.84,1.41898392]
[1724404563943,10.90728172,144.86,144.84,1.41898392]
[1724404564141,0.04588172,144.86,144.84,1.41898392]
[1724404567141,3.49718172,144.86,144.84,1.41898392]
[1724404567341,0.04588172,144.86,144.84,1.41898392]
[1724404571947,3.49738172,144.86,144.84,1.41898392]
[1724404572642,0.04588172,144.86,144.84,1.41898392]
[1724404573950,7.45588172,144.86,144.84,0.05038392]
[1724404575648,0.04588172,144.86,144.84,0.05038392]
[1724404587951,3.49718172,144.86,144.84,0.05038392]
[1724404588355,0.04588172,144.86,144.84,0.05038392]
[1724404602563,0.04588172,144.86,144.84,7.46038392]
[1724404608563,0.04588172,144.86,144.85,3.69935723]
[1724404609276,0.04588172,144.86,144.84,7.46038392]
[1724404609468,0.04588172,144.86,144.85,3.69935723]
[1724404611065,0.04588172,144.86,144.85,5.08041506]
[1724404612871,0.04588172,144.86,144.85,1.38105783]
[1724404613171,0.04588172,144.86,144.85,5.08038081]
[1724404615170,0.04588172,144.86,144.85,5.08037979]
[1724404615971,0.04588172,144.86,144.84,0.05038392]
[1724404617468,0.04588172,144.86,144.85,5.08042605]
[1724404617670,0.04588172,144.86,144.85,12.49042605]
[1724404618292,0.04588172,144.86,144.85,7.41]
[1724404618478,0.04588172,144.86,144.85,12.49034751]
[1724404620673,0.04588172,144.86,144.85,7.41]
[1724404620871,0.04588172,144.86,144.85,12.49033892]
[1724404621878,0.04588172,144.86,144.85,5.08033892]
[1724404623979,0.04588172,144.86,144.84,8.73608392]
[1724404624175,0.04588172,144.86,144.85,3.69935479]
[1724404624377,0.04588172,144.86,144.85,5.08042009]
[1724404627187,0.04588172,144.86,144.84,8.73608392]
[1724404627489,0.04588172,144.86,144.85,12.49042009]
[1724404629690,0.04588172,144.86,144.85,19.00113252]
[1724404630386,0.04588172,144.86,144.85,7.41]
[1724404630580,0.04588172,144.86,144.85,8.79105544]
[1724404630784,0.04588172,144.86,144.85,19.00113939]
[1724404633890,0.04588172,144.86,144.85,7.89182874]
[1724404634093,0.04588172,144.86,144.85,11.59115203]
[1724404635193,0.04588172,144.86,144.85,19.00115203]
[1724404637295,0.04588172,144.86,144.85,11.59115203]
[1724404637493,0.04588172,144.86,144.85,11.59115349]
[1724404640292,0.04588172,144.86,144.84,12.18778392]
[1724404640594,0.04588172,144.86,144.85,11.59115349]
[1724404642597,0.04588172,144.86,144.85,5.08038019]
[1724404643797,0.04588172,144.86,144.85,5.08042491]
[1724404644404,0.04588172,144.86,144.85,15.94192491]
[1724404644710,0.04588172,144.86,144.85,22.45266329]
[1724404647031,1.26884068,144.91,144.87,3.4509]
[1724404647208,1.26884068,144.9,144.89,7.41]
[1724404647405,1.26884068,144.93,144.89,7.41]
[1724404647809,7.41,144.9,144.83,8.63163128]
[1724404648017,0.04803396,144.88,144.85,0.04900941]
[1724404648214,7.41,144.85,144.81,8.63163128]
[1724404648409,2.71335788,144.88,144.81,8.63163128]
[1724404648410,3.4522,144.82,144.81,8.63163128]
[1724404648614,10.8622,144.82,144.81,20.22592946]
[1724404648809,10.8622,144.82,144.81,11.59429818]
[1724404649010,3.452,144.83,144.81,11.59429818]
[1724404649312,7.41,144.83,144.82,22.38808796]
[1724404649517,0.04731415,144.84,144.82,31.01971924]
[1724404649713,0.04731415,144.84,144.83,21.00707234]
[1724404649920,0.04731415,144.84,144.83,22.38808796]
[1724404650327,0.04731415,144.84,144.81,10.8624]
[1724404650517,0.04731415,144.84,144.83,20.99923313]
[1724404650721,0.04731415,144.84,144.83,18.68139172]
[1724404651011,0.04731415,144.84,144.83,13.79893591]
[1724404651416,0.04731415,144.84,144.83,22.38013548]
[1724404653422,0.04731415,144.84,144.83,11.58949215]
[1724404653621,0.04731415,144.84,144.8,0.0459128]
[1724404653922,0.04731415,144.84,144.83,3.69999184]
[1724404654115,0.04731415,144.84,144.83,10.21183485]
[1724404654321,0.04731415,144.84,144.83,5.08122704]
[1724404654815,0.04731415,144.84,144.83,11.59287597]
[1724404656912,0.04731415,144.84,144.81,7.41]
[1724404657119,0.04731415,144.84,144.82,15.87341947]
[1724404657318,0.04731415,144.84,144.83,10.21079319]
[1724404657620,0.04731415,144.84,144.83,11.59192155]
[1724404657813,0.04731415,144.84,144.83,8.79112836]
[1724404658019,0.04731415,144.84,144.83,21.21166974]
[1724404660155,0.04731415,144.84,144.83,17.62079321]
[1724404660321,0.04731415,144.84,144.83,11.00083931]
[1724404660520,0.04731415,144.84,144.83,21.21127847]
[1724404661321,0.04731415,144.84,144.83,24.66317847]
[1724404662429,0.04731415,144.84,144.83,33.24579733]
[1724404665421,0.04731415,144.84,144.83,25.83579733]
[1724404665622,0.04731415,144.84,144.83,22.38389733]
[1724404665824,0.04731415,144.84,144.83,29.79389733]
[1724404666729,0.04731415,144.84,144.83,7.41]
[1724404667030,0.04731415,144.84,144.83,23.28289635]
[1724404667433,0.04731415,144.84,144.83,33.24577173]
[1724404668831,0.04731415,144.84,144.83,33.2456295]
[1724404669939,0.04731415,144.84,144.83,10.8619]
[1724404670229,0.04731415,144.84,144.83,33.24562823]
[1724404670829,0.04731415,144.84,144.83,14.45271672]
[1724404671025,0.04731415,144.84,144.83,33.24562823]
[1724404672931,0.04731415,144.84,144.83,33.24564777]
[1724404673434,0.04731415,144.84,144.83,26.73480028]
[1724404673631,0.04731415,144.84,144.83,23.14396402]
[1724404673832,0.04731415,144.84,144.83,26.73480028]
[1724404674233,0.04731415,144.84,144.83,23.28290028]
[1724404674433,0.04731415,144.84,144.83,22.38387735]
[1724404674936,0.04731415,144.84,144.83,3.59083626]
[1724404675134,0.04731415,144.84,144.83,15.87291122]
[1724404675538,0.04731415,144.84,144.83,22.38389413]
[1724404676136,0.04731415,144.84,144.83,29.79389413]
[1724404678641,0.04731415,144.84,144.83,33.24579413]
[1724404679839,0.04731415,144.84,144.83,22.38389413]
[1724404680145,0.04731415,144.84,144.83,13.80127346]
[1724404681243,0.04731415,144.84,144.83,11.59152807]
[1724404682142,0.04731415,144.84,144.83,1.38109087]
[1724404682340,0.04731415,144.84,144.83,11.5921497]
[1724404684348,0.04731415,144.84,144.83,19.0021497]
[1724404684744,0.04731415,144.84,144.83,21.21190822]
[1724404685149,0.04731415,144.84,144.83,19.0021497]
[1724404685350,0.04731415,144.84,144.83,10.8619]
[1724404685547,0.04731415,144.84,144.83,22.45350679]
[1724404685743,0.04731415,144.84,144.83,19.00160679]
[1724404687943,0.04731415,144.84,144.83,21.2113551]
[1724404689455,0.04731415,144.84,144.83,13.8013551]
[1724404689647,0.04731415,144.84,144.83,11.59160679]
[1724404690344,0.04731415,144.84,144.83,13.80135556]
[1724404691846,0.04731415,144.84,144.83,7.41]
[1724404692049,0.04731415,144.84,144.83,19.83020857]
[1724404692252,0.04731415,144.84,144.83,12.42020857]
[1724404692446,0.04731415,144.84,144.83,11.59155217]
[1724404692950,0.04731415,144.84,144.83,13.80130139]
[1724404694451,0.04731415,144.84,144.83,11.59155217]
[1724404694651,0.04731415,144.84,144.83,13.8013039]
[1724404695045,0.04731415,144.84,144.83,13.80130474]
[1724404696260,0.04731415,144.84,144.83,22.38389305]
[1724404696446,0.04731415,144.84,144.83,13.80130474]
[1724404696752,0.04731415,144.84,144.83,22.38393264]
[1724404696953,0.04731415,144.84,144.83,11.59155301]
[1724404697253,0.04731415,144.84,144.83,24.66321561]
[1724404697455,0.04731415,144.84,144.83,33.24580219]
[1724404697648,0.04731415,144.84,144.83,14.45275743]
[1724404697955,0.04731415,144.84,144.83,33.2457467]
[1724404701373,0.04731415,144.84,144.83,13.0716626]
[1724404701676,0.04731415,144.84,144.83,33.2458357]
[1724404702365,0.04731415,144.84,144.83,22.3839357]
[1724404703172,0.04731415,144.84,144.83,25.8358357]
[1724404704075,0.04731415,144.84,144.83,33.2458357]
[1724404704579,0.04731415,144.84,144.83,14.4527439]
[1724404704921,0.04731415,144.84,144.83,33.24583084]
[1724404705176,0.04731415,144.84,144.83,14.45274317]
[1724404705370,0.04731415,144.84,144.83,26.7348371]
[1724404705768,0.04731415,144.84,144.83,33.24583013]
[1724404706173,0.04731415,144.84,144.83,14.45274317]
[1724404706374,68.0160904,144.94,144.87,3.4509]
[1724404706671,1.26884155,144.93,144.88,7.41]
[1724404706874,4.71854155,144.93,144.88,7.41]
[1724404707176,1.26884155,144.92,144.9,7.41]
[1724404707374,1.31574027,144.92,144.9,7.45378927]
[1724404708075,1.31574027,144.92,144.91,7.41]
[1724404708677,0.04689872,144.92,144.9,7.45378927]
[1724404710176,0.04689872,144.92,144.9,0.04378927]
[1724404711680,1.31571283,144.92,144.9,0.04378927]
[1724404712773,1.26881411,144.91,144.9,0.04378927]
[1724404713475,4.71881411,144.91,144.9,0.04378927]
[1724404714073,12.12881411,144.91,144.9,0.04378927]
[1724404714974,4.71881411,144.91,144.9,0.04378927]
[1724404715176,12.12881411,144.91,144.9,0.04378927]
[1724404715576,4.71881411,144.91,144.9,0.04378927]
[1724404715868,12.12881411,144.91,144.9,0.04378927]
[1724404718180,4.71881411,144.91,144.9,0.04378927]
[1724404718383,12.12881411,144.91,144.9,0.04378927]
[1724404718676,4.71885248,144.91,144.9,0.04378927]
[1724404718876,12.12885248,144.91,144.9,0.04378927]
[1724404720978,3.4508,144.88,144.84,4.0097]
[1724404721172,3.4508,144.88,144.85,5.08052351]
[1724404721372,7.41,144.87,144.84,2.6821]
[1724404721579,3.4508,144.88,144.85,5.08053485]
[1724404721781,7.41,144.87,144.85,0.05023439]
[1724404722286,7.41,144.86,144.85,0.05023439]
[1724404722482,7.41,144.86,144.85,5.13073742]
[1724404722981,7.41,144.86,144.85,3.74965466]
[1724404724087,3.451,144.87,144.85,0.05023439]
[1724404724389,10.861,144.87,144.85,0.05023439]
[1724404724582,3.451,144.87,144.85,0.05023439]
[1724404730896,0.04704986,144.88,144.85,0.05023439]
[1724404740418,3.49784986,144.88,144.85,0.05023439]
[1724404746101,3.451,144.87,144.85,0.05023439]
[1724404751208,3.451,144.87,144.86,3.6993948]
[1724404751808,3.451,144.87,144.85,0.05023439]
[1724404760813,3.4512,144.86,144.85,0.05023439]
[1724404761111,3.4512,144.86,144.85,3.74974346]
[1724404762204,3.4512,144.86,144.85,3.74971991]
[1724404765311,3.4512,144.86,144.85,0.05023439]
[1724404765507,3.4512,144.86,144.85,3.7497199]
[1724404766718,3.4511,144.87,144.85,3.7497199]
[1724404766916,3.4511,144.87,144.85,0.05023439]
[1724404774520,3.4512,144.86,144.85,0.05023439]
[1724404774922,10.8612,144.86,144.85,0.05023439]
[1724404777921,3.4512,144.86,144.85,0.05023439]
[1724404782417,3.4512,144.86,144.85,3.74983778]
[1724404784228,3.4512,144.86,144.85,0.05023439]
[1724404784417,3.4512,144.86,144.85,3.74983673]
[1724404786923,3.4511,144.87,144.85,3.74983673]
[1724404787128,3.4511,144.87,144.85,0.05023439]
[1724404787426,0.04704986,144.88,144.85,0.05023439]
[1724404787620,3.451,144.87,144.85,0.05023439]
[1724404788321,3.4512,144.86,144.85,0.05023439]
[1724404788521,3.4512,144.86,144.85,3.74975837]
[1724404797445,3.4512,144.86,144.85,0.05023439]
[1724404797640,3.4512,144.86,144.85,3.74975852]
[1724404800675,3.4512,144.86,144.85,0.05023439]
[1724404801036,3.4512,144.86,144.85,3.74975488]
[1724404803160,3.4511,144.87,144.85,3.74975488]
[1724404803344,3.4511,144.87,144.85,0.05023439]
[1724404803544,3.4511,144.87,144.85,3.74975864]
[1724404803743,3.4511,144.87,144.85,0.05023439]
[1724404808551,3.4512,144.86,144.85,0.05023439]
[1724404808745,3.4512,144.86,144.85,3.74975547]
[1724404810177,3.4512,144.86,144.85,0.05023439]
[1724404810352,3.4512,144.86,144.85,3.74975548]
[1724404815153,3.4512,144.86,144.85,0.05023439]
[1724404815353,3.4512,144.86,144.85,3.74975685]
[1724404816858,3.4512,144.86,144.85,0.05023439]
[1724404817051,3.4512,144.86,144.85,3.74973073]
[1724404817552,3.4512,144.86,144.85,3.74975428]
[1724404818359,3.4512,144.86,144.85,3.74972851]
[1724404818555,3.4512,144.86,144.85,5.13083097]
[1724404820457,3.4512,144.86,144.85,3.74972851]
[1724404821149,3.4512,144.86,144.85,5.13083105]
[1724404821347,3.4512,144.86,144.85,3.74972851]
[1724404821547,3.4512,144.86,144.85,5.13083119]
[1724404821747,10.8612,144.86,144.85,5.13083119]
[1724404822052,10.8612,144.86,144.85,0.05023439]
[1724404822252,12.13024039,144.86,144.85,0.05023439]
[1724404822954,12.13029375,144.86,144.85,0.05023439]
[1724404823855,3.4522,144.82,144.81,2.21011955]
[1724404824057,2.7819,144.85,144.75,15.53990626]
[1724404824363,1.2693239,144.84,144.76,29.80349911]
[1724404824551,2.06169,144.82,144.79,7.41]
[1724404824748,3.452,144.83,144.8,5.08284391]
[1724404824959,0.05108212,144.82,144.79,7.46231205]
[1724404825158,0.05108212,144.82,144.8,5.08239343]
[1724404825358,0.05108212,144.82,144.81,3.70091263]
[1724404825657,1.88756,144.86,144.81,19.00428717]
[1724404825857,7.41,144.88,144.83,7.41]
[1724404826064,3.4513,144.86,144.84,3.70091263]
[1724404826352,3.4513,144.86,144.83,7.41]
[1724404826656,3.4513,144.86,144.84,1.38110488]
[1724404826854,3.49544372,144.86,144.83,7.45375357]
[1724404827054,3.49544372,144.86,144.84,3.69955288]
[1724404827256,3.49544372,144.86,144.83,7.45375357]
[1724404827453,3.49544372,144.86,144.84,3.69955393]
[1724404827649,3.49544372,144.86,144.83,7.45375357]
[1724404827855,3.49544372,144.86,144.84,5.08060464]
[1724404828054,3.49544372,144.86,144.83,7.45375357]
[1724404828357,3.49544372,144.86,144.84,5.08060331]
[1724404828556,3.49544372,144.86,144.83,7.45375357]
[1724404828753,3.49544372,144.86,144.84,5.08060331]
[1724404829058,3.49544372,144.86,144.83,7.45375357]
[1724404829269,3.49544372,144.86,144.84,5.08059988]
[1724404829453,3.49544372,144.86,144.83,7.45375357]
[1724404829849,3.49544372,144.86,144.84,1.38111149]
[1724404830058,3.49544372,144.86,144.83,7.45375357]
[1724404830360,3.49544372,144.86,144.84,5.08063973]
[1724404830555,3.49544372,144.86,144.83,7.45375357]
[1724404830756,3.49544372,144.86,144.84,5.08063978]
[1724404831063,3.49544372,144.86,144.83,7.45375357]
[1724404831254,3.49544372,144.86,144.84,5.08063978]
[1724404831456,3.49544372,144.86,144.83,7.45375357]
[1724404831759,3.49544372,144.86,144.84,5.080635]
[1724404832063,3.49544372,144.86,144.83,7.45375357]
[1724404832359,3.49544372,144.86,144.84,3.69955283]
[1724404832559,3.49544372,144.86,144.83,7.45375357]
[1724404832959,3.49544372,144.86,144.84,5.08067095]
[1724404833160,3.49544372,144.86,144.83,7.45375357]
[1724404833360,3.49544372,144.86,144.84,3.69953287]
[1724404833567,3.49544372,144.86,144.83,7.45375357]
[1724404833758,3.49544372,144.86,144.84,3.69955633]
[1724404834067,3.49544372,144.86,144.83,7.45375357]
[1724404834260,3.49544372,144.86,144.84,3.69955459]
[1724404834565,3.49544372,144.86,144.83,7.45375357]
[1724404834862,3.49544372,144.86,144.84,3.69955458]
[1724404835064,3.49544372,144.86,144.83,7.45375357]
[1724404835267,3.49544372,144.86,144.84,3.69955835]
[1724404835461,3.49544372,144.86,144.83,7.45375357]
[1724404835664,3.49544372,144.86,144.84,3.69953102]
[1724404835970,3.49544372,144.86,144.83,7.45375357]
[1724404836462,3.49544372,144.86,144.84,3.69953102]
[1724404836661,3.49544372,144.86,144.83,7.45375357]
[1724404836964,3.49544372,144.86,144.84,3.69955715]
[1724404837264,3.49544372,144.86,144.83,7.45375357]
[1724404837467,3.49544372,144.86,144.84,3.69955536]
[1724404837764,3.49544372,144.86,144.83,7.45375357]
[1724404837954,3.49544372,144.86,144.84,3.6995588]
[1724404838157,3.49544372,144.86,144.83,7.45375357]
[1724404838358,3.49544372,144.86,144.84,3.69955866]
[1724404838562,3.49544372,144.86,144.83,7.45375357]
[1724404838767,3.4515,144.85,144.84,3.69955537]
[1724404839182,3.4515,144.85,144.83,7.45375357]
[1724404839360,0.04414372,144.86,144.84,11.10952983]
[1724404839666,0.04414372,144.86,144.85,3.69952983]
[1724404842377,0.04414372,144.86,144.84,7.41]
[1724404843058,0.04414372,144.86,144.85,3.69943197]
[1724404843466,0.04414372,144.86,144.85,5.08050016]
[1724404843762,3.52725248,144.92,144.85,5.08050016]
[1724404843971,1.26885756,144.91,144.87,7.41]
[1724404844156,27.6,144.95,144.9,7.41]
[1724404844360,3.4496,144.93,144.9,7.41]
[1724404844660,1.26883154,144.92,144.9,7.41]
[1724404844859,1.31837429,144.92,144.9,0.04865746]
[1724404845059,4.76817429,144.92,144.9,0.04865746]
[1724404845263,1.26883154,144.91,144.9,0.04865746]
[1724404845568,1.31837429,144.92,144.9,0.04865746]
[1724404845760,1.26883154,144.91,144.9,0.04865746]
[1724404846062,14.33255571,144.91,144.9,0.04865746]
[1724404846261,15.60138725,144.91,144.9,0.04865746]
[1724404846461,14.33255571,144.91,144.9,0.04865746]
[1724404846661,15.60140657,144.91,144.9,0.04865746]
[1724404850867,15.60142807,144.91,144.9,0.04865746]
[1724404854172,14.33255571,144.91,144.9,0.04865746]
[1724404854474,15.60142899,144.91,144.9,0.04865746]
[1724404855067,10.86,144.91,144.9,0.04865746]
[1724404855267,15.50466456,144.91,144.9,0.04865746]
[1724404860071,41.69466456,144.91,144.82,1.2827]
[1724404860365,1.26887185,144.9,144.83,5.08051368]
[1724404860570,7.41,144.85,144.84,3.69942912]
[1724404860799,3.37579271,144.91,144.82,1.2827]
[1724404860967,7.41,144.84,144.83,1.38113368]
[1724404861173,7.41,144.84,144.83,3.69961121]
[1724404861371,10.8617,144.84,144.83,3.69961121]
[1724404862274,3.4517,144.84,144.83,3.69961121]
[1724404863288,3.452,144.83,144.82,1.32793874]
[1724404863474,3.452,144.83,144.82,2.70911668]
[1724404863674,3.452,144.83,144.82,6.40889382]
[1724404863872,3.452,144.83,144.82,12.92039331]
[1724404866500,3.452,144.83,144.82,1.32793874]
[1724404866691,3.452,144.83,144.82,2.70911728]
[1724404866900,3.452,144.83,144.82,1.32793874]
[1724404867077,3.452,144.83,144.82,12.92031967]
[1724404869692,3.452,144.83,144.82,2.70910983]
[1724404869984,3.452,144.83,144.82,6.4091545]
[1724404870574,3.452,144.83,144.82,12.92077511]
[1724404871084,3.452,144.83,144.82,12.92081717]
[1724404871682,3.452,144.83,144.82,11.63811717]
[1724404871980,3.452,144.83,144.82,5.1264545]
[1724404872181,3.452,144.83,144.82,3.74528341]
[1724404872383,10.862,144.83,144.82,0.04523874]
[1724404877190,3.452,144.83,144.82,0.04523874]
[1724404904800,0.05285994,144.85,144.82,0.04523874]
[1724404905004,0.05285994,144.85,144.83,7.41]
[1724404905909,0.05285994,144.85,144.82,7.45523874]
[1724404906301,0.05285994,144.85,144.82,0.04523874]
[1724404906501,3.4517,144.84,144.82,0.04523874]
[1724404916409,0.05285994,144.85,144.83,3.69984901]
[1724404916604,0.05285994,144.85,144.82,0.04523874]
[1724404917410,3.4517,144.84,144.82,0.04523874]
[1724404920214,3.452,144.83,144.82,0.04523874]
[1724404920412,3.452,144.83,144.82,3.74537117]
[1724404922709,3.452,144.83,144.82,0.04523874]
[1724404922906,3.452,144.83,144.82,3.74536471]
[1724404925119,3.452,144.83,144.82,0.04523874]
[1724404925509,3.452,144.83,144.82,3.74539879]
[1724404927118,3.452,144.83,144.82,0.04523874]
[1724404938317,12.13129631,144.83,144.82,0.04523874]
[1724404941430,12.13129207,144.83,144.82,0.04523874]
[1724404944528,10.862,144.83,144.82,0.04523874]
[1724404949340,12.1312712,144.83,144.82,0.04523874]
[1724404949741,10.862,144.83,144.82,0.04523874]
[1724404953439,10.862,144.83,144.77,8.72370338]
[1724404953440,3.4528,144.8,144.77,8.72370338]
[1724404953741,3.535937,144.79,144.78,11.59597735]
[1724404954044,3.535937,144.79,144.78,5.08264697]
[1724404954235,3.4529,144.79,144.78,5.08265421]
[1724404954539,12.9925272,144.79,144.77,0.05064059]
[1724404954744,7.41,144.78,144.77,0.05064059]
[1724404955435,10.8631,144.78,144.77,0.05064059]
[1724404958545,3.4531,144.78,144.77,0.05064059]
[1724404967954,10.8631,144.78,144.77,0.05064059]
[1724404971452,3.39919568,144.79,144.77,0.05064059]
[1724404973349,6.85209568,144.79,144.77,0.05064059]